Cogmind - Beta 11 X7 @@@ ROGUE MODE // 2021.09.03 @ 22:55:54 Player: Runia Result: Destroyed by Y-54 Guardian with Gatling Laser Performance ------------- Evolutions (3) 1500 Regions Visited (9) 1800 Robots Destroyed (137) 685 Value Destroyed (4038) 4038 Prototype IDs (12) 240 Alien Tech Used (0) 0 Bonus (1528) 1528 TOTAL SCORE: 9791 Bonus ------- High Alert Combat Kills 241 Follower Combat Kills 419 Entered Garrisons 400 Used RIF Installer 1000 Friendly Fire -532 Cogmind --------- Core Integrity 0/700 Matter 350/350 Energy 290/290 System Corruption 7% Temperature Cool (12) Movement Walking (200) Ox1 Location -7/Storage Parts ------- > --- POWER (1) -------- Reinforced Deuterium Engine > --- PROPULSION (3) --- Aluminum Leg Carbon-fiber Leg > --- UTILITY (7) ------ Coolant Injector Small Matter Pod Advanced Targeting Computer Improved Melee Analysis Suite Target Analyzer Improved Light Armor Plating Relay Coupler [NC] (11) > --- WEAPON (2) ------- Precision Assault Rifle Precision Assault Rifle > --- INVENTORY (5) ---- Light Ion Engine Light Nuclear Core Improved Sensor Array Relay Coupler [NC] (31) Remote Datajack Peak State ------------ > --- POWER ------------ Micro Nuclear Core > --- PROPULSION ------- Aluminum Leg Flexi-carbon Leg Flexi-carbon Leg > --- UTILITY ---------- Coolant Injector High-capacity Storage Unit Advanced Visual Processing Unit Advanced Targeting Computer Target Analyzer Relay Coupler [NC] Relay Coupler [Behemoth] > --- WEAPON ----------- Heavy Machine Gun Remote Datajack > --- INVENTORY -------- Light Ion Engine Light Nuclear Core Improved Sensor Array Hardened Medium Armor Plating Improved Light Armor Plating Relay Coupler [NC] Relay Coupler [NC] [Rating: 46] Favorites ----------- Power Light Nuclear Core Engine Ion Engine Power Core Light Nuclear Core Propulsion Light Treads Treads Light Treads Leg Aluminum Leg Wheel Armored Wheel Utility High-capacity Storage Unit Device Improved Cooling System Storage High-capacity Storage Unit Processor Advanced Targeting Computer Hackware Relay Coupler [Sentry] Protection Improved Propulsion Shielding Weapon Heavy Particle Gun Energy Gun Heavy Particle Gun Energy Cannon Advanced Beam Cannon Ballistic Gun Heavy Assault Rifle Ballistic Cannon Mini Assault Cannon Launcher Mini Grenade Launcher Special Weapon Remote Datajack Impact Weapon Great Maul Special Melee Weapon Datajack Build | -11 -10 -9 -9 -8 -8 -8 -8 -7 -7 ------- Run | Scr Mat Mat Min Mat Gar Mat Gar Fac Sto Slots Evolved 6 | . . 2 . 2 . . . 2 . Power . | . . . . . . . . . . Propulsion 1 | . . 1 . . . . . . . Utility 5 | . . 1 . 2 . . . 2 . Weapon . | . . . . . . . . . . Parts Attached 161 | . 21 31 2 31 13 5 1 42 15 Power 15 | . 2 3 . 3 2 . . 3 2 Engine 12 | . 2 3 . 3 1 . . 1 2 Core 3 | . . . . . 1 . . 2 . Reactor . | . . . . . . . . . . Propulsion 40 | . 8 10 . 5 5 . . 10 2 Treads 23 | . 5 9 . 3 2 . . 4 . Leg 6 | . 1 . . . . . . 3 2 Wheel 11 | . 2 1 . 2 3 . . 3 . Hover . | . . . . . . . . . . Flight . | . . . . . . . . . . Utility 52 | . 4 5 1 13 5 2 1 16 5 Device 24 | . . 3 1 7 4 . 1 8 . Storage 5 | . 3 . . . . . . 1 1 Processor 8 | . 1 1 . 2 . 1 . 2 1 Hackware 3 | . . . . . . . . 3 . Protection 12 | . . 1 . 4 1 1 . 2 3 Artifact . | . . . . . . . . . . Weapon 54 | . 7 13 1 10 1 3 . 13 6 Energy Gun 22 | . 2 6 . 6 1 2 . 5 . Energy Cannon 1 | . . 1 . . . . . . . Ballistic Gun 17 | . 4 5 1 . . . . 2 5 Ballistic Cannon 1 | . . . . . . . . . 1 Launcher 7 | . . 1 . 4 . 1 . 1 . Special Weapon 3 | . 1 . . . . . . 2 . Impact Weapon 2 | . . . . . . . . 2 . Slashing Weapon . | . . . . . . . . . . Piercing Weapon . | . . . . . . . . . . Special Melee Weapon 1 | . . . . . . . . 1 . Unidentified Prototypes 7 | . . 4 . 1 . . . . 2 Corrupted Parts 1 | . . . . . . . . . 1 System Corruption 1 | . . . . . . . . . 1 Parts Lost 47 | . 3 4 . 9 3 1 1 19 7 Power 9 | . 1 1 . 2 1 . . 3 1 Propulsion 13 | . . 1 . 2 1 . . 7 2 Utility 12 | . . 1 . 3 . . 1 4 3 Weapon 13 | . 2 1 . 2 1 1 . 5 1 Highest Loss Streak 12 | . 1 1 . 4 2 1 1 12 6 Average Slot Usage (%) 95 | . 92 99 100 99 99 100 92 91 61 Engine 7 | . 14 11 11 8 4 . . . 1 Core 2 | . . . . . 4 9 9 5 1 Treads 16 | . 8 22 22 18 18 18 18 12 . Leg 2 | . 11 . . . . . . 2 4 Wheel 8 | . 7 10 11 9 9 9 9 5 . Device 11 | . . 10 11 15 10 9 16 20 7 Storage 9 | . 14 11 11 9 9 9 9 6 4 Processor 13 | . 8 11 11 16 18 18 10 16 17 Protection 2 | . . . . 3 7 8 1 . 5 Energy Gun 12 | . 12 10 11 13 17 17 18 11 . Ballistic Gun 5 | . 13 9 5 3 . . . 1 5 Naked Turns . | . . . . . . . . . . Heaviest Build 77 | 14 49 55 55 64 61 55 63 77 63 Greatest Support 60 | 20 40 60 12 12 40 12 40 50 50 Greatest Overweight (x) 16 | . 4 5 4 5 5 4 5 16 9 Average Overweight (x) 3 | . 2 4 4 4 3 4 4 3 1 Largest Inventory Capacity 20 | 8 20 20 20 20 20 20 20 20 20 Average Capacity 18 | 8 14 20 20 20 20 20 20 19 5 Most Carried 20 | 5 14 20 20 20 20 20 19 20 7 Average Carried 16 | 4 8 18 19 18 17 19 18 15 5 Final Capacity 20 | 8 20 20 20 20 20 20 20 20 5 Final Carried 20 | 3 14 20 20 15 20 19 18 7 5 Class Distribution -------------------- 58% | Mutant 27% | Bothacker-Mutant 14% | Scavenger-Mutant Dominant Class ---------------- Mutant | -10/Materials Mutant | -9/Materials Scavenger-Mutant | -9/Mines Mutant | -8/Materials Mutant | -8/Garrison Bothacker-Mutant | -8/Materials Bothacker-Mutant | -8/Garrison Bothacker-Mutant | -7/Factory Mutant | -7/Storage Resources | -11 -10 -9 -9 -8 -8 -8 -8 -7 -7 ----------- Run | Scr Mat Mat Min Mat Gar Mat Gar Fac Sto Matter Collected 2633 | 200 343 598 50 425 157 20 45 503 292 Remotely . | . . . . . . . . . . Salvage Created 5545 | . 534 1250 94 1129 1513 180 172 587 86 Parts 299 | . 42 89 3 72 35 14 4 37 3 Haulers Intercepted 10 | . 2 5 . 3 . . . . . Recyclers Shooed 5 | . . 1 . 2 . 1 . . 1 Parts Field Recycled . | . . . . . . . . . . Retrieved Matter . | . . . . . . . . . . Parts Self-Destructed . | . . . . . . . . . . Prevented . | . . . . . . . . . . Kills | -11 -10 -9 -9 -8 -8 -8 -8 -7 -7 ------- Run | Scr Mat Mat Min Mat Gar Mat Gar Fac Sto Combat Hostiles Destroyed 104 | . 13 28 3 26 13 4 2 13 2 Guns 85 | . 11 26 2 18 13 2 2 11 . Cannons 5 | . 1 2 . . . . . . 2 AOE 12 | . 1 . 1 7 . 2 . 1 . Classes Destroyed 16 | . 5 2 . 3 2 . 1 3 . Worker 4 | . 1 2 . 1 . . . . . Builder 2 | . . . . 2 . . . . . Hauler 10 | . 2 5 . 3 . . . . . Recycler 1 | . . . . . . . . 1 . Operator 4 | . . 1 . 2 . 1 . . . Watcher 9 | . 2 4 . 1 . 1 . 1 . Swarmer 35 | . 6 13 1 9 3 2 . 1 . Grunt 37 | . 7 8 2 8 4 2 3 3 . Brawler 2 | . . . . . 1 . . . 1 Duelist 1 | . . . . . . . 1 . . Protector 1 | . . . . . . . . 1 . Sentry 22 | . . 7 . 7 4 . . 3 1 Specialist 1 | . . . . 1 . . . . . Hunter 5 | . . . . 1 1 . . 3 . Programmer 2 | . . . . . . . . 2 . Behemoth 1 | . . . . . 1 . . . . Best Kill Streak 7 | . 3 7 2 7 5 3 1 3 1 Combat Bots Only 6 | . 3 6 2 5 5 2 1 3 1 Max Kills in Single Turn 3 | . 1 2 1 3 1 2 1 2 1 Gunslinging 1 | . . 1 . . . . . . . Exploded 3 | . 1 . 1 3 . 2 . 1 . Melee . | . . . . . . . . . . Uniques/NPCs Destroyed 1 | . . . . . . . . . 1 01-MTF (-7/Storage) Combat | -11 -10 -9 -9 -8 -8 -8 -8 -7 -7 -------- Run | Scr Mat Mat Min Mat Gar Mat Gar Fac Sto Damage Taken 8462 | . 604 835 95 2093 746 185 112 2503 1289 Core 1447 | . 103 160 11 282 114 72 . 346 359 Absorbed by Shields . | . . . . . . . . . . Core Remaining (%) 57 | 100 58 . 57 . . . 14 . . Volleys Fired 425 | . 54 101 6 86 79 13 12 62 12 Largest 2 | . 2 2 2 2 2 2 2 2 2 Hottest 130 | . 120 106 78 130 130 110 110 110 76 Shots Fired 786 | . 92 198 10 164 155 25 24 95 23 Gun 727 | . 89 172 8 157 155 24 24 86 12 Cannon 37 | . . 26 . . . . . . 11 Launcher 14 | . . . 2 7 . 1 . 4 . Special 8 | . 3 . . . . . . 5 . Kinetic 234 | . 54 86 4 40 . . . 27 23 Thermal 528 | . 33 112 4 117 155 24 24 59 . Explosive 14 | . . . 2 7 . 1 . 4 . Electromagnetic 5 | . 5 . . . . . . . . Robot Hit Streak 50 | . 10 16 6 11 48 50 10 25 11 Robot Miss Streak 6 | . 4 5 2 4 2 2 6 3 2 Penetration Max . | . . . . . . . . . . Secondary Targets 7 | . . 1 . 3 1 . 1 1 . Max Gunslinging Chain 1 | . . 1 . 1 1 . 1 1 . Shots Hit Robots 577 | . 59 133 6 112 137 18 13 79 20 Core Hits 249 | . 27 56 6 56 42 10 6 40 6 Critical Kills . | . . . . . . . . . . Critical Parts Destroyed 2 | . . 1 . . . . . 1 . Critical Strikes 25 | . 1 4 . 8 10 . . 1 1 Burn 22 | . 1 3 . 8 10 . . . . Destroy 2 | . . 1 . . . . . 1 . Blast 1 | . . . . . . . . . 1 Melee Attacks 3 | . . . . . . . . 3 . Impact 2 | . . . . . . . . 2 . Slashing . | . . . . . . . . . . Piercing . | . . . . . . . . . . Sneak Attacks . | . . . . . . . . . . Combat Hostiles . | . . . . . . . . . . Follow-up Attacks . | . . . . . . . . . . Damage Inflicted 12073 | . 829 2254 266 2791 2686 460 248 2080 459 Guns 9799 | . 761 1965 109 2028 2686 348 248 1470 184 Cannons 553 | . . 289 . . . . . . 264 Explosions 1686 | . 44 . 157 763 . 112 . 610 . Melee . | . . . . . . . . . . Ramming 11 | . . . . . . . . . 11 Kinetic 2630 | . 433 803 50 413 . . . 483 448 Thermal 7736 | . 342 1451 59 1615 2686 348 248 987 . Explosive 1642 | . . . 157 763 . 112 . 610 . Electromagnetic 54 | . 54 . . . . . . . . Impact . | . . . . . . . . . . Slashing . | . . . . . . . . . . Piercing . | . . . . . . . . . . Highest Corruption 7 | . 1 . . 2 2 2 2 1 7 Average Corruption 2 | . 1 . . 2 2 2 2 1 5 Corruption Purged . | . . . . . . . . . . Effects 36 | . 2 . . 2 16 4 3 . 9 Message Errors 9 | . 2 . . . 4 1 . . 2 Matter Fused 3 | . . . . . . . . . 3 Heat Flow Errors 5 | . . . . . 2 2 1 . . Energy Discharges 8 | . . . . 1 3 1 2 . 1 Data Loss (minor) 9 | . . . . 1 5 . . . 3 Weapon Failures 2 | . . . . . 2 . . . . Overload Shots . | . . . . . . . . . . Overflow Damage 87 | . 20 16 . 27 . . . 24 . Projectiles 16 | . . 16 . . . . . . . Explosions 71 | . 20 . . 27 . . . 24 . Melee . | . . . . . . . . . . Knockbacks . | . . . . . . . . . . Impact . | . . . . . . . . . . Kinetic . | . . . . . . . . . . Secondary . | . . . . . . . . . . Self-Inflicted Damage 425 | . 30 . 55 144 . 39 . 155 2 Shots 11 | . 1 . 2 3 . 1 . 4 . Rammed 1 | . . . . . . . . . 1 Targets Rammed 3 | . . . . . . . . . 3 Kicked 2 | . . . . . . . . . 2 Crushed . | . . . . . . . . . . Highest Temperature 245 | . 57 54 . 196 245 116 213 196 13 Average Temperature 40 | . 15 16 . 101 63 53 111 55 7 Received Heat Transfer 2013 | . 225 216 24 594 171 72 54 363 294 Siege Activations . | . . . . . . . . . . Robots Corrupted . | . . . . . . . . . . Combat Hostiles . | . . . . . . . . . . Parts Fried . | . . . . . . . . . . Impact Corruptions . | . . . . . . . . . . Robots Melted 10 | . . . . 1 8 . . 1 . Combat Hostiles 2 | . . . . 1 . . . 1 . Parts Melted 35 | . . 3 . 5 19 1 5 2 . Heat Transferred 16816 | . 901 3182 111 3700 5846 666 481 1929 . Parts Sabotaged . | . . . . . . . . . . Parts Stolen . | . . . . . . . . . . Parts Stripped . | . . . . . . . . . . Power Chain Reactions 1 | . 1 . . . . . . . . Missiles Intercepted . | . . . . . . . . . . Alert | -11 -10 -9 -9 -8 -8 -8 -8 -7 -7 ------- Run | Scr Mat Mat Min Mat Gar Mat Gar Fac Sto Peak Influence 656 | . 180 499 313 446 656 419 259 475 407 Initial 319 | . . 50 194 66 201 319 198 125 90 Average 254 | . 72 238 209 259 530 323 232 182 231 Maximum Alert Level 2 | . . 2 1 2 2 2 1 2 2 Low Security (%) 46 | 100 100 47 63 34 . . 15 71 47 Level 1 31 | . . 35 36 57 16 95 84 8 21 Level 2 21 | . . 17 . 8 83 4 . 20 30 Level 3 . | . . . . . . . . . . Level 4 . | . . . . . . . . . . Level 5 . | . . . . . . . . . . High Security . | . . . . . . . . . . Max Security . | . . . . . . . . . . Squads Dispatched 16 | . 3 1 . 5 . . . 5 2 Investigation 1 | . 1 . . . . . . . . Extermination 2 | . . . . . . . . 2 . Reinforcement 10 | . 2 1 . 5 . . . 2 . Assault . | . . . . . . . . . . Garrison 3 | . . . . . . . . 1 2 Intercept . | . . . . . . . . . . Construction Impeded 1 | . . . . 1 . . . . . Haulers Reinforced . | . . . . . . . . . . Active Scanning Responses . | . . . . . . . . . . Cargo Convoy Interrupts 1 | . . . . . . . . 1 . Stealth | -11 -10 -9 -9 -8 -8 -8 -8 -7 -7 --------- Run | Scr Mat Mat Min Mat Gar Mat Gar Fac Sto Distress Signals 14 | . 1 1 . 7 . 3 . 1 1 Communications Jammed . | . . . . . . . . . . Distress Signals . | . . . . . . . . . . Times Spotted 221 | . 28 45 4 49 18 9 11 36 21 Peak Tracking Total 13 | . 4 5 2 6 6 4 5 8 13 Tactical Retreats 11 | . 1 2 . 2 1 . . 2 3 Traps | -11 -10 -9 -9 -8 -8 -8 -8 -7 -7 ------- Run | Scr Mat Mat Min Mat Gar Mat Gar Fac Sto Traps Triggered 19 | . 6 . . 1 7 . 4 . 1 Indirectly . | . . . . . . . . . . Trap Hack Attempts . | . . . . . . . . . . Triggered . | . . . . . . . . . . Disarmed . | . . . . . . . . . . Reprogrammed . | . . . . . . . . . . Reused . | . . . . . . . . . . Traps Extracted . | . . . . . . . . . . Installed . | . . . . . . . . . . Triggered . | . . . . . . . . . . Machines | -11 -10 -9 -9 -8 -8 -8 -8 -7 -7 ---------- Run | Scr Mat Mat Min Mat Gar Mat Gar Fac Sto Machines Disabled 9 | . . 2 . 2 1 . . 1 3 Max in Single Turn 1 | . . 1 . 1 1 . . 1 . Garrison Access 1 | . . . . . . . . 1 . Garrison Relay 1 | . . . . . 1 . . . . Machines Sabotaged . | . . . . . . . . . . Garrisons Compromised . | . . . . . . . . . . Overloaded Fab Kills . | . . . . . . . . . . Fab Network Shutdowns . | . . . . . . . . . . Hacking | -11 -10 -9 -9 -8 -8 -8 -8 -7 -7 --------- Run | Scr Mat Mat Min Mat Gar Mat Gar Fac Sto Machines Accessed 32 | . 7 6 1 6 . 7 . 5 . Terminals 23 | . 6 5 . 5 . 6 . 1 . Fabricators . | . . . . . . . . . . Repair Stations 1 | . . . . . . . . 1 . Recycling Units 1 | . 1 . . . . . . . . Scanalyzers 2 | . . 1 . . . . . 1 . Garrison Access 4 | . . . . 1 . 1 . 2 . Total Hacks 100 | . 25 26 1 13 . 21 . 14 . Successful 66 | . 18 19 1 8 . 9 . 11 . Failed 33 | . 7 6 . 5 . 12 . 3 . Catastrophic 4 | . . . . 1 . 1 . 2 . Database Lockouts 1 | . . 1 . . . . . . . Manual 62 | . 17 17 . 9 . 16 . 3 . Terminals 77 | . 23 20 . 12 . 20 . 2 . Fabricators . | . . . . . . . . . . Repair Stations 2 | . . . . . . . . 2 . Recycling Units 2 | . 2 . . . . . . . . Scanalyzers 10 | . . 6 . . . . . 4 . Garrison Access 8 | . . . . 1 . 1 . 6 . Terminal Hacks 27 | . 11 8 1 4 . 3 . . . Part Schematic 5 | . 2 3 . . . . . . . Robot Schematic 1 | . 1 . . . . . . . . Robot Analysis 3 | . 3 . . . . . . . . Prototype ID Bank 3 | . . 2 . 1 . . . . . Open Door 1 | . . . 1 . . . . . . Branch Access Points 3 | . . 1 . 1 . 1 . . . Emergency Access Points 1 | . 1 . . . . . . . . Terminal Index 1 | . . 1 . . . . . . . Garrison Index 1 | . . . . . . 1 . . . Unreport Threat 3 | . 1 . . 1 . 1 . . . Locate Traps 1 | . . . . 1 . . . . . Maintenance Status 1 | . . 1 . . . . . . . Hauler Manifests 1 | . 1 . . . . . . . . Zone Layout 2 | . 2 . . . . . . . . Fabricator Hacks . | . . . . . . . . . . Repair Station Hacks 2 | . . . . . . . . 2 . Scan Component 1 | . . . . . . . . 1 . Repair 1 | . . . . . . . . 1 . Recycling Unit Hacks 2 | . 2 . . . . . . . . Report Inventory 1 | . 1 . . . . . . . . Retrieve Matter 1 | . 1 . . . . . . . . Scanalyzer 10 | . . 6 . . . . . 4 . Insert Component 5 | . . 3 . . . . . 2 . Analyze 5 | . . 3 . . . . . 2 . Garrison Access Hacks 7 | . . . . 1 . 1 . 5 . Unlock Access 3 | . . . . 1 . 1 . 1 . Seal Access 1 | . . . . . . . . 1 . Coupler Status 3 | . . . . . . . . 3 . Unauthorized Hacks 18 | . 5 5 . 3 . 5 . . . Terminals 18 | . 5 5 . 3 . 5 . . . Botnet 15 | . 4 4 . 3 . 4 . . . Operators 3 | . 1 1 . . . 1 . . . Fabricators . | . . . . . . . . . . Repair Stations . | . . . . . . . . . . Recycling Units . | . . . . . . . . . . Scanalyzers . | . . . . . . . . . . Garrison Access . | . . . . . . . . . . Data Cores Recovered 2 | . . . . 1 . 1 . . . Used 1 | . . . . 1 . . . . . Hacking Detections 29 | . 7 6 . 5 . 6 . 5 . Full Trace Events 1 | . . . . 1 . . . . . Feedback Events . | . . . . . . . . . . Feedback Blocked . | . . . . . . . . . . Robot Schematics Acquired 1 | . 1 . . . . . . . . Robots Built . | . . . . . . . . . . Matter . | . . . . . . . . . . Time . | . . . . . . . . . . Total Robot Build Rating . | . . . . . . . . . . Part Schematics Acquired 9 | . 2 5 . . . . . 2 . Parts Built . | . . . . . . . . . . Matter . | . . . . . . . . . . Time . | . . . . . . . . . . Total Part Build Rating . | . . . . . . . . . . Parts Repaired 1 | . . . . . . . . 1 . Time 32 | . . . . . . . . 32 . Parts Recycled . | . . . . . . . . . . Recycled Matter . | . . . . . . . . . . Retrieved Matter . | . . . . . . . . . . Retrieved Components . | . . . . . . . . . . Parts Scanalyzed 5 | . . 3 . . . . . 2 . Part Schematics Acquired 5 | . . 3 . . . . . 2 . Parts Damaged . | . . . . . . . . . . Bothacking | -11 -10 -9 -9 -8 -8 -8 -8 -7 -7 ------------ Run | Scr Mat Mat Min Mat Gar Mat Gar Fac Sto Used RIF Installer 2 | . . . . . 1 . 1 . . Command Fork 1 | . . . . . . . 1 . . Robots Hacked 3 | . . . . . . . . 3 . Non-combat 1 | . . . . . . . . 1 . Combat 2 | . . . . . . . . 2 . Robot Hacks Applied 3 | . . . . . . . . 3 . purge_threat 1 | . . . . . . . . 1 . reboot_system 1 | . . . . . . . . 1 . overwrite_iff 1 | . . . . . . . . 1 . Relay Couplers Released 6 | . . . . . 5 . . 1 . Machine Destruction 6 | . . . . . 5 . . 1 . Attached 3 | . . . . . . . . 3 . Robots Rewired . | . . . . . . . . . . Allies Hacked . | . . . . . . . . . . Hacks Repelled . | . . . . . . . . . . Allies | -11 -10 -9 -9 -8 -8 -8 -8 -7 -7 -------- Run | Scr Mat Mat Min Mat Gar Mat Gar Fac Sto Total Allies 12 | . . . 3 . 1 . 4 2 2 Largest Group 3 | . . . 3 3 1 . 1 1 2 Highest-Rated Group 129 | . . . 40 40 81 . 18 32 129 Highest-Rated Ally 100 | . . . 16 16 81 . 18 32 100 Total Orders 8 | . . . . . 6 . 2 . . RETURN 8 | . . . . . 6 . 2 . . Ally Attacks 90 | . . . 17 7 7 . 17 19 23 Total Damage 1642 | . . . 153 52 56 . 114 178 1089 Kills 15 | . . . 3 . . . 1 1 10 Allies Corrupted . | . . . . . . . . . . Allies Melted . | . . . . . . . . . . Intel | -11 -10 -9 -9 -8 -8 -8 -8 -7 -7 ------- Run | Scr Mat Mat Min Mat Gar Mat Gar Fac Sto Robot Analysis Total 3 | . 3 . . . . . . . . Derelict Logs Recovered 3 | . . . 3 . . . . . . Drone Launches 41 | . . . . . 10 . 17 14 . Drone Recoveries 37 | . . . . . 8 . 17 12 . Exploration | -11 -10 -9 -9 -8 -8 -8 -8 -7 -7 ------------- Run | Scr Mat Mat Min Mat Gar Mat Gar Fac Sto Turns Passed 8464 | 2 1120 1868 602 1321 1224 296 441 1236 354 Spaces Moved 4334 | 1 667 966 382 606 582 165 214 584 167 Core 92 | . . . . . . . . 7 85 Treads 76 | . 20 25 . . 17 . 14 . . Legs 451 | 1 303 . . . . . . 65 82 Wheels 3715 | . 344 941 382 606 565 165 200 512 . Hover . | . . . . . . . . . . Flight . | . . . . . . . . . . Fastest Speed 50 | 120 120 135 150 150 150 150 150 100 50 Average Speed 150 | 120 132 151 150 154 154 150 170 157 152 Slowest Speed 850 | 120 360 260 150 165 265 150 265 850 500 Overloaded Moves . | . . . . . . . . . . Propulsion Burnouts . | . . . . . . . . . . Robots Hopped . | . . . . . . . . . . Cave-ins Triggered . | . . . . . . . . . . Exploration Rate (%) 46 | 2 96 70 78 61 51 29 36 12 27 Regions Visited 9 Branch Regions 2 Pre-discovered Areas 1 | . . . 1 . . . . . . Known Exits Taken 4 | . . 1 . 1 . 1 . 1 . Unknown Exits Taken 3 | 1 1 . 1 . . . . . . Scrap Searched 1 | . . . 1 . . . . . . Spaces Dug . | . . . . . . . . . . Terrain Destroyed 99 | . 4 . 19 53 1 6 . 16 . Melee . | . . . . . . . . . . Projectile 4 | . 2 . . . 1 . . 1 . AOE 95 | . 2 . 19 53 . 6 . 15 . Terrain Rammed . | . . . . . . . . . . Walls Destroyed . | . . . . . . . . . . Machines Disabled . | . . . . . . . . . . Actions | -11 -10 -9 -9 -8 -8 -8 -8 -7 -7 --------- Run | Scr Mat Mat Min Mat Gar Mat Gar Fac Sto Total 5470 | 3 806 1190 403 825 753 188 267 795 240 Wait 362 | . 36 51 5 71 41 1 32 88 37 Move 4327 | . 666 965 381 606 581 165 213 583 167 Hop . | . . . . . . . . . . Pick Up 88 | . 21 21 4 15 16 1 . 9 1 Fast Attach 33 | . 5 1 . 2 1 2 . 10 12 Attach 50 | . 8 6 . 13 2 1 1 17 2 Detach 3 | . . . . 1 . . . 2 . Swap 78 | . 8 24 2 16 10 2 . 15 1 Drop 79 | 3 8 21 5 15 12 3 1 6 5 Fire 425 | . 54 101 6 86 79 13 12 62 12 Melee 3 | . . . . . . . . 3 . Ram 1 | . . . . . . . . . 1 Kick 2 | . . . . . . . . . 2 Crush . | . . . . . . . . . . Escape Stasis 19 | . . . . . 11 . 8 . . Rewire . | . . . . . . . . . . Trap . | . . . . . . . . . . Miscellaneous . | . . . . . . . . . . Route ------- -11/Scrapyard -10/Materials (discovered 5 exits: *Mat x3 / [*Min x2]) -9/Materials (discovered 2 exits: *Mat / *Min) -9/Mines (discovered 2 exits: *Mat / [*Zio]) -8/Materials (discovered 4 exits: *Fac x3 / Gar) -8/Garrison (discovered 2 exits: *Mat x2) -8/Materials -8/Garrison (discovered 2 exits: *Fac x2) -7/Factory (discovered 2 exits: *Sto / Gar) -7/Storage History --------- Turn | Location | Event 3 | -11/Scrapyard | Discovered new exit (range 0) 3 | -11/Scrapyard | Entered Materials 219 | -10/Materials | Discovered new exit (range 7) 310 | -10/Materials | Build established: Mutant 355 | -10/Materials | Discovered new exit (range 7) 415 | -10/Materials | Discovered new exit (range 16) 764 | -10/Materials | Discovered new exit (range 5) 895 | -10/Materials | Discovered new exit (range 11) 1123 | -10/Materials | Entered another Materials area 1123 | -9/Materials | Evolved 2 slots: Propulsion x1, Utility x1 1846 | -9/Materials | Identified exit to Mines 2197 | -9/Materials | Central database locked down 2467 | -9/Materials | Discovered new exit (range 16) 2977 | -9/Materials | Build established: Scavenger-Mutant 2991 | -9/Materials | Entered Mines 2996 | -9/Mines | Assisted by bots powering up and referring to "LRC-V3" 3000 | -9/Mines | Learned Materials stockpile data 3023 | -9/Mines | Met a Derelict bent on vengeance 3045 | -9/Mines | A Derelict revealed a hidden shortcut to a safe place 3105 | -9/Mines | Learned location of Zion (-7) 3282 | -9/Mines | Joined a pair of Derelicts in attacking an 0b10 outpost 3554 | -9/Mines | Discovered new exit (range 6) 3565 | -9/Mines | Found the Drone Emporium 3579 | -9/Mines | Found Prototype Device 3593 | -9/Mines | Entered Materials 3593 | -8/Materials | Accompanied by 3 allies 3593 | -8/Materials | Evolved 2 slots: Utility x2 3593 | -8/Materials | Identified Splice Drone Bay 4068 | -8/Materials | Discovered new exit (range 8) 4099 | -8/Materials | Build established: Mutant 4377 | -8/Materials | Discovered new exit (range 12) 4607 | -8/Materials | Lost 3 parts (1p1n1u) 4699 | -8/Materials | Lost 4 parts (1p2u1w) 4833 | -8/Materials | Discovered new exit (range 15) 4875 | -8/Materials | Core integrity fell below 50% 4914 | -8/Materials | Identified exit to Garrison 4914 | -8/Materials | Entered Garrison 4959 | -8/Garrison | Spotted B-75 Beast 5028 | -8/Garrison | Destroyed B-75 Beast 5090 | -8/Garrison | Triggered checkpoint 5112 | -8/Garrison | Triggered checkpoint 5273 | -8/Garrison | Discovered new exit (range 8) 5465 | -8/Garrison | Discovered new exit (range 10) 5486 | -8/Garrison | Installed Relay Interface Framework 5650 | -8/Garrison | Triggered checkpoint 5668 | -8/Garrison | Garrison Relay disabled 5986 | -8/Garrison | Build established: Bothacker-Mutant 6138 | -8/Garrison | Entered Materials 6420 | -8/Materials | Core integrity fell below 20% 6434 | -8/Materials | Identified exit to Garrison 6434 | -8/Materials | Entered Garrison 6604 | -8/Garrison | Triggered checkpoint 6696 | -8/Garrison | Discovered new exit (range 13) 6844 | -8/Garrison | Discovered new exit (range 10) 6869 | -8/Garrison | Expanded RIF knowledge: Command Fork 6875 | -8/Garrison | Entered Factory 6875 | -7/Factory | Evolved 2 slots: Utility x2 6876 | -7/Factory | Identified exit to Storage 6898 | -7/Factory | Identified exit to Garrison 6989 | -7/Factory | Repaired Arm. Wheel 7764 | -7/Factory | Cargo convoy interrupted 7834 | -7/Factory | Lost 5 parts (1p2n2u) 7880 | -7/Factory | Garrison activated, responded to threat 7918 | -7/Factory | Lost 12 parts (2p5n2u3w) 8111 | -7/Factory | Entered Storage 8113 | -7/Storage | Core integrity fell below 50% 8207 | -7/Storage | Lost 6 parts (1p2n2u1w) 8225 | -7/Storage | Core integrity fell below 20% 8252 | -7/Storage | Met 01-MTF 8286 | -7/Storage | Garrison activated, responded to threat 8328 | -7/Storage | Allies destroyed 01-MTF 8465 | -7/Storage | Destroyed by Y-54 Guardian with Gatling Laser Last Messages --------------- R-06 Scavenger collects Aluminum Leg. Acquired Aluminum Leg. K-01 Serf collects debris. Acquired 20 matter. K-01 Serf collects debris. Acquired Corrupted Carbon-fiber Leg. Integrated Corrupted Carbon-fiber Leg (+1). Complication: Prc. Assault Rifle rejected. Complication: Mni. Assault Cannon rejected. Complication: Rnf. Deuterium Engine rejected. K-01 Serf collects debris. Acquired Rnf. Deuterium Engine. K-01 Serf collects debris. System corrupted: Energy discharge (-44). Acquired Prc. Assault Rifle. K-01 Serf collects debris. Acquired Prc. Assault Rifle. K-01 Serf collects debris. Acquired 40 matter. K-01 Serf collects debris. Map ----- +----------------------------------------------------+ | | | | | | | | | | | | | | | | | | | | | | | | | | | ??????????????????????????????????????????????? | | ????????????????????????????#######???????????? | | ????????????????????????????#"""""#???????????? | | ??????????????????????????###""T""###?????????? | | ??????????????????????????# #?????????# | | ??????????????????######### """ """ ########### | | ??????????????????#] ## """ """ # | | ??????????????????# ] ] ## """ """ / | | ??????????????????#k / [ ## """ """ # | | ??????????????????# %%[%## """ """ ########### | | ??????????????????###*%%### #?????????# | | ??????????????????##%% %## ########### | | ??????????????????###%@ ###/######### | | ??????????????????###Y###### # ## | | ??????????????????##% %[ + ## """""" | | ????????????????? # % ##### # """ ## "????" | | ??????????????? +% #???# # """ ## "????" | | ?????????????? ]# #???# # """ ## """""" | | ???????????? + #???# # # | | ??????????? # #???# ######### | | ?????????? ?# #???#+#???????########## | | ?????????? = ?# #??????????????????### | | ??????????? ] ??# #??????????????????#"" " | | ???????????######??# #??????????????????#"Y " | | ???????????????????# #??????????????????#"" " | | ???????????????????# +??????????????????### | | ???????????????????# ?????????????????????# | | ???????????????????# ?????????????????????# | | ???????????????????+ ?????????????????????# | | ???????????????????? ?????????????????????### | | ??????????????????????????????????????????????? | | ??????????????????????????????????????????????? | | ??????????????????????????????????????????????? | | ??????????????????????????????????????????????? | | ??????????????????????????????????????????????? | | ??????????????????????????????????????????????? | | ??????????????????????????????????????????????? | +----------------------------------------------------+ Best States ------------- Heat Dissipation 61 Coolant Potential 65 Energy Generation 16 Energy Capacity 290 Matter Stores 350 Matter Capacity 350 Sight Range 20 Robot Scan Range 15 Terrain Scan Density 10 Jamming Range 8 Armor Coverage 600 Propulsion Shielding 66 Evasion (%) 55 Targeting Accuracy 13 Melee Accuracy 6 Target Analysis 5 Recoil Reduction 3 Relay Coupler Types 27 Relay Coupler Value 2 Item Schematics ----------------- Cargo Storage Unit | -10/Materials | Hacked Wheel | -10/Materials | Hacked Com. Wheel | -9/Materials | Hacked Arm. Wheel | -9/Materials | Scanalyzed Propulsion Shielding | -9/Materials | Scanalyzed Structural Scanner | -9/Materials | Scanalyzed Imp. Targeting Computer | -9/Materials | Hacked Transmission Jammer | -7/Factory | Scanalyzed Mni. Grenade Launcher | -7/Factory | Scanalyzed Robot Schematics ------------------ R-06 Scavenger | -10/Materials | Hacked Fabricated ------------ Nothing Alien Tech Used ----------------- None Achievements -------------- None Challenges ------------ None Game ------ Seed SurveybotWaveBox Manual? 0 Play Time 01:19:33 Cumulative 294.5 hours Start 2021.09.02 @ 00:13:39 End 2021.09.03 @ 22:55:54 Sessions 4 Manual Loads 0 Difficulty Rogue Special Mode None Game No. 336 Rogue 336 Adventurer 0 Explorer 0 Win Type - Total 5 Types 5/0/0/0/0/0/0/0/0 Lore% 70 Gallery% 86 Achievement% 65 Wizard Run 0 Options --------- ASCII 0 Keyboard 0 Movement Mouse Keybinds 1 Fullscreen 2 Font 24/Smallcaps Map View 76x50 Tactical HUD 1 Map Filters NONE Filters NONE Steam 1 RUN: 500e6dca-187d-49a7-a726-508ea29adc20